Cogmind - Beta 13 @@@ ROGUE MODE // 2024.04.29 @ 15:20:10 Player: Some Pennies Result: Destroyed by WS-YLK(R) with Subdweller Machine Gun Performance ------------- Evolutions (0) 0 Regions Visited (2) 400 Robots Destroyed (25) 125 Value Destroyed (501) 501 Prototype IDs (0) 0 Alien Tech Used (0) 0 Bonus (0) 0 TOTAL SCORE: 1026 Bonus ------- None Cogmind --------- Core Integrity 0/250 Matter 300/300 Energy 125/125 System Corruption 0% Temperature Cool (0) Movement Core (800) Ox15 Location -10/Subcaves Parts ------- > --- POWER (1) -------- Light Ion Engine > --- PROPULSION (2) --- (None) > --- UTILITY (2) ------ High-capacity Storage Unit Light Armor Plating > --- WEAPON (2) ------- Light Assault Rifle Mining Laser > --- INVENTORY (20) --- Light Ion Engine Light Ion Engine Structural Scanner Sensor Array Signal Interpreter Seismic Detector Transport Network Coupler Light Armor Plating Light Armor Plating Subdweller Machine Gun Grenade Launcher Datajack Flamer Peak State ------------ > --- POWER ------------ Light Ion Engine > --- PROPULSION ------- Light Treads Light Treads > --- UTILITY ---------- Improved Terrain Scanner Improved Terrain Scanner > --- WEAPON ----------- EM Pulse Gun EM Pulse Gun > --- INVENTORY -------- Light Ion Engine Light Ion Engine Small Storage Unit Light Assault Rifle [Rating: 11] Favorites ----------- Power Light Ion Engine Engine Light Ion Engine Propulsion Light Treads Treads Light Treads Utility Structural Scanner Device Structural Scanner Storage High-capacity Storage Unit Protection Light Armor Plating Weapon EM Pulse Gun Energy Gun EM Pulse Gun Ballistic Gun Assault Rifle Special Weapon Mining Laser Build | -11 -10 -10 ------- Run | Yrd Mat Sub Slots Evolved . | . . . Power . | . . . Propulsion . | . . . Utility . | . . . Weapon . | . . . Parts Attached 24 | 8 6 10 Power 3 | 1 1 1 Engine 3 | 1 1 1 Core . | . . . Reactor . | . . . Propulsion 2 | 2 . . Treads 2 | 2 . . Leg . | . . . Wheel . | . . . Hover . | . . . Flight . | . . . Utility 8 | 3 3 2 Device 3 | 2 1 . Storage 3 | 1 2 . Processor . | . . . Hackware . | . . . Protection 2 | . . 2 Artifact . | . . . Weapon 11 | 2 2 7 Energy Gun 6 | 2 1 3 Energy Cannon . | . . . Ballistic Gun 3 | . . 3 Ballistic Cannon . | . . . Launcher . | . . . Special Weapon 2 | . 1 1 Impact Weapon . | . . . Slashing Weapon . | . . . Piercing Weapon . | . . . Special Melee Weapon . | . . . Unidentified Prototypes . | . . . Parts Lost 8 | . . 8 Power 1 | . . 1 Propulsion 2 | . . 2 Utility 1 | . . 1 Weapon 4 | . . 4 Highest Loss Streak 7 | . . 7 To Critical Strikes . | . . . Average Slot Usage (%) 97 | . 99 88 Engine 13 | . 14 13 Treads 26 | . 28 20 Device 13 | . 14 10 Storage 14 | . 14 14 Energy Gun 24 | . 27 10 Ballistic Gun 2 | . . 13 Naked Turns . | . . . Heaviest Build 48 | 13 48 48 Greatest Support 40 | 40 40 40 Greatest Overweight (x) 15 | . 1 15 Average Overweight (x) . | . . 1 Largest Inventory Capacity 20 | 8 20 20 Average Capacity 17 | 6 17 20 Most Carried 17 | 6 17 17 Average Carried 12 | 4 12 15 Final Capacity 20 | 8 20 20 Final Carried 17 | 6 17 13 Class Distribution -------------------- 100% | Mutant Dominant Class ---------------- Mutant | -10/Materials Mutant | -10/Subcaves Resources | -11 -10 -10 ----------- Run | Yrd Mat Sub Matter Collected 469 | 280 50 139 Remotely . | . . . Salvage Created 906 | 174 575 157 Parts 62 | 13 38 11 Haulers Intercepted 2 | . 2 . Recyclers Shooed 1 | . 1 . Parts Field Recycled . | . . . Retrieved Matter . | . . . Parts Self-Destructed 6 | . . 6 Prevented 2 | . . 2 Kills | -11 -10 -10 ------- Run | Yrd Mat Sub Combat Hostiles Destroyed 13 | . 8 5 Guns 10 | . 6 4 AOE 2 | . 2 . Classes Destroyed 9 | 2 5 2 Builder 2 | . 2 . Tunneler 4 | 4 . . Hauler 2 | . 2 . Recycler 1 | 1 . . Operator 1 | . 1 . Watcher 2 | . 2 . Swarmer 3 | . . 3 Grunt 8 | . 8 . Subdweller 2 | . . 2 Best Kill Streak 3 | 3 3 3 Combat Bots Only 3 | . 3 3 Max Kills in Single Turn 2 | 1 2 1 Gunslinging . | . . . Exploded 2 | . 2 . Melee . | . . . Uniques/NPCs Destroyed . | . . . Combat | -11 -10 -10 -------- Run | Yrd Mat Sub Hostile Shots Fired 83 | . 14 69 Missed 25 | . 4 21 Damage Taken 1232 | . 172 1060 Core 254 | . 18 236 Absorbed by Shields . | . . . Core Remaining (%) 100 | 100 . . Volleys Fired 82 | 9 35 38 Largest 2 | 2 2 2 Hottest 120 | 80 100 120 Shots Fired 144 | 18 68 58 Gun 140 | 18 66 56 Cannon . | . . . Launcher . | . . . Special 4 | . 2 2 Kinetic 38 | . . 38 Thermal 4 | . 2 2 Explosive . | . . . Electromagnetic 102 | 18 66 18 Robot Hit Streak 12 | 8 11 12 Robot Miss Streak 6 | 2 2 6 Penetration Max . | . . . Secondary Targets 1 | . . 1 Max Gunslinging Chain 1 | . . 1 Shots Hit Robots 98 | 12 44 42 Core Hits 38 | 5 24 9 Critical Kills . | . . . Critical Parts Destroyed . | . . . Critical Strikes 1 | 1 . . Corrupt 1 | 1 . . Melee Attacks . | . . . Impact . | . . . Slashing . | . . . Piercing . | . . . Sneak Attacks . | . . . Combat Hostiles . | . . . Follow-up Attacks . | . . . Damage Inflicted 1443 | 168 802 473 Guns 1245 | 168 656 421 Cannons . | . . . Explosions 146 | . 146 . Melee . | . . . Ramming . | . . . Kinetic 301 | . . 301 Thermal 198 | . 146 52 Explosive . | . . . Electromagnetic 944 | 168 656 120 Impact . | . . . Slashing . | . . . Piercing . | . . . Highest Corruption . | . . . Average Corruption . | . . . Corruption Purged . | . . . Corruption Blocked . | . . . Overload Shots . | . . . Overflow Damage . | . . . Projectiles . | . . . Explosions . | . . . Melee . | . . . Knockbacks . | . . . Impact . | . . . Kinetic . | . . . Secondary . | . . . Self-Inflicted Damage 56 | . 56 . Shots 1 | . 1 . Rammed . | . . . Targets Rammed . | . . . Kicked . | . . . Crushed . | . . . Highest Temperature 445 | 18 210 445 Average Temperature 74 | 6 48 228 Received Heat Transfer 1029 | . 66 963 Siege Activations . | . . . Robots Corrupted 1 | . . 1 Combat Hostiles 1 | . . 1 Parts Fried 1 | . . 1 Impact Corruptions . | . . . Robots Melted . | . . . Combat Hostiles . | . . . Parts Melted . | . . . Heat Transferred 250 | . 150 100 Parts Sabotaged . | . . . Parts Stolen . | . . . Parts Stripped . | . . . Power Chain Reactions 2 | . 2 . Alert | -11 -10 -10 ------- Run | Yrd Mat Sub Peak Influence 190 | 25 190 . Initial 16 | . 16 . Average 53 | 11 57 . Maximum Alert Level . | . . . Low Security (%) 100 | 100 100 . Level 1 . | . . . Level 2 . | . . . Level 3 . | . . . Level 4 . | . . . Level 5 . | . . . High Security . | . . . Max Security . | . . . Squads Dispatched 3 | . 3 . Investigation 2 | . 2 . Extermination . | . . . Reinforcement 1 | . 1 . Assault . | . . . Garrison . | . . . Intercept . | . . . Searches Triggered . | . . . Construction Impeded . | . . . Haulers Reinforced . | . . . Active Scanning Responses . | . . . Cargo Convoy Interrupts . | . . . Stealth | -11 -10 -10 --------- Run | Yrd Mat Sub Distress Signals 1 | . 1 . Communications Jammed . | . . . Distress Signals . | . . . Times Spotted 20 | . 14 6 Peak Tracking Total 3 | . 3 2 Tactical Retreats 1 | . 1 . Traps | -11 -10 -10 ------- Run | Yrd Mat Sub Traps Triggered 4 | . 2 2 Indirectly . | . . . Trap Hack Attempts . | . . . Triggered . | . . . Disarmed . | . . . Reprogrammed . | . . . Reused . | . . . Traps Extracted . | . . . Installed . | . . . Triggered . | . . . Machines | -11 -10 -10 ---------- Run | Yrd Mat Sub Machines Disabled 1 | . 1 . Max in Single Turn 1 | . 1 . Machines Repaired . | . . . Machines Dismantled . | . . . Machines Sabotaged . | . . . Overloaded Fab Kills . | . . . Hacking | -11 -10 -10 --------- Run | Yrd Mat Sub Machines Accessed 6 | . 6 . Terminals 5 | . 5 . Fabricators . | . . . Repair Stations 1 | . 1 . Recycling Units . | . . . Scanalyzers . | . . . Garrison Access . | . . . Total Hacks 17 | . 17 . Successful 5 | . 5 . Failed 11 | . 11 . Catastrophic 2 | . 2 . Database Lockouts 1 | . 1 . Manual 9 | . 9 . Terminals 14 | . 14 . Fabricators . | . . . Repair Stations 3 | . 3 . Recycling Units . | . . . Scanalyzers . | . . . Garrison Access . | . . . Terminal Hacks 5 | . 5 . Robot Analysis 3 | . 3 . Alert Level 1 | . 1 . Zone Layout 1 | . 1 . Fabricator Hacks . | . . . Repair Station Hacks . | . . . Recycling Unit Hacks . | . . . Scanalyzer . | . . . Garrison Access Hacks . | . . . Unauthorized Hacks . | . . . Terminals . | . . . Fabricators . | . . . Repair Stations . | . . . Recycling Units . | . . . Scanalyzers . | . . . Garrison Access . | . . . Data Cores Recovered . | . . . Used . | . . . Hacking Detections 5 | . 5 . Full Trace Events . | . . . Feedback Events . | . . . Feedback Blocked . | . . . Robot Schematics Acquired . | . . . Robots Built . | . . . Authchips . | . . . Time . | . . . Total Robot Build Rating . | . . . Part Schematics Acquired . | . . . Parts Built . | . . . Authchips . | . . . Time . | . . . Total Part Build Rating . | . . . Parts Repaired . | . . . Time . | . . . Parts Recycled . | . . . Recycled Matter . | . . . Retrieved Matter . | . . . Retrieved Components . | . . . Parts Scanalyzed . | . . . Part Schematics Acquired . | . . . Parts Damaged . | . . . Bothacking | -11 -10 -10 ------------ Run | Yrd Mat Sub Used RIF Installer . | . . . Robots Hacked . | . . . Non-combat . | . . . Combat . | . . . Robot Hacks Applied . | . . . Relay Couplers Released . | . . . Fabnet Peak Effective % . | . . . Robots Rewired . | . . . Allies Hacked . | . . . Hacks Repelled . | . . . Allies | -11 -10 -10 -------- Run | Yrd Mat Sub Total Allies . | . . . Largest Group . | . . . Highest-Rated Group . | . . . Highest-Rated Ally . | . . . Total Orders . | . . . Ally Attacks . | . . . Total Damage . | . . . Kills . | . . . Allies Corrupted . | . . . Allies Melted . | . . . Intel | -11 -10 -10 ------- Run | Yrd Mat Sub Robot Analysis Total 3 | . 3 . Derelict Logs Recovered . | . . . Drone Launches . | . . . Drone Recoveries . | . . . Exploration | -11 -10 -10 ------------- Run | Yrd Mat Sub Turns Passed 2359 | 164 1777 418 Spaces Moved 917 | 70 736 111 Core 19 | 12 . 7 Treads 898 | 58 736 104 Legs . | . . . Wheels . | . . . Hover . | . . . Flight . | . . . Fastest Speed 50 | 50 160 240 Average Speed 221 | 141 220 275 Slowest Speed 800 | 160 240 800 Overloaded Moves . | . . . Propulsion Burnouts . | . . . Robots Hopped . | . . . Cave-ins Triggered . | . . . Exploration Rate (%) 33 | 6 83 10 Regions Visited 2 Branch Regions 1 Pre-discovered Areas . | . . . Known Exits Taken . | . . . Unknown Exits Taken 2 | 1 1 . Scrap Searched . | . . . Spaces Dug 2 | . 2 . Terrain Destroyed 13 | . 13 . Melee . | . . . Projectile 2 | . 2 . AOE 11 | . 11 . Terrain Rammed . | . . . Walls Destroyed . | . . . Machines Disabled . | . . . Actions | -11 -10 -10 --------- Run | Yrd Mat Sub Total 1097 | 116 818 163 Wait 42 | 18 22 2 Move 915 | 69 735 111 Hop . | . . . Pick Up 28 | 11 15 2 Fast Attach 3 | 3 . . Attach 12 | 5 1 6 Detach . | . . . Swap 9 | . 5 4 Drop 6 | 1 5 . Fire 82 | 9 35 38 Melee . | . . . Ram . | . . . Kick . | . . . Crush . | . . . Escape Stasis . | . . . Rewire . | . . . Trap . | . . . Miscellaneous . | . . . Route ------- -11/Scrapyard -10/Materials (discovered 6 exits: [*Mat x3] / [*Min x2] / [*Sub]) -10/Subcaves History --------- Turn | Location | Event 7 | -11/Scrapyard | Discovered new exit (range 15) 165 | -11/Scrapyard | Entered Materials 318 | -10/Materials | Build established: Mutant 700 | -10/Materials | Discovered new exit (range 11) 825 | -10/Materials | Discovered new exit (range 9) 910 | -10/Materials | Discovered new exit (range 19) 975 | -10/Materials | Central database locked down 985 | -10/Materials | Discovered new exit (range 15) 1062 | -10/Materials | Discovered new exit (range 10) 1372 | -10/Materials | Discovered new exit (range 3) 1942 | -10/Materials | Entered Subcaves 2244 | -10/Subcaves | Core integrity fell below 50% 2264 | -10/Subcaves | Core integrity fell below 20% 2290 | -10/Subcaves | Lost 7 parts (1p2n1u3w) 2360 | -10/Subcaves | Destroyed by WS-YLK(R) with Subdweller Machine Gun Last Messages --------------- 02255_ Subatomizers dissect the Corrupted Sub. Power Source. 02255_ EM Pulse Gun destroyed. 02259_ Lgt. Armor Plating destroyed. 02271_ AN-C6D(R) destroyed. 02283_ Subatomizers dissect the Corrupted Sub. Power Source. 02300_ Acquired Flamer. 02301_ Acquired 58 matter. 02306_ Subatomizers dissect the Corrupted Sub. Power Source. 02317_ Acquired Corrupted Sub. Machine Gun. 02326_ Acquired 12 matter. 02328_ Subatomizers dissect the Corrupted Sub. Power Source. 02332_ WS-YLK(R): "SUBMAD!" 02337_ Acquired 1 matter. 02351_ WS-YLK(R) affixes Scrap Shield Fragment to Scrap Shield. 02352_ Acquired 1 matter. Map ----- +----------------------------------------------------+ | ????????????## ###??????????###### | | ????????????## ###???????????#### | | ???????????### #" # ##??????????????? | | ??????###?##### ## ## ##??????????????? | | ??????## ""##" # ### ##??????????????? | | ??????""" "" ^ ## ### ##??????????????? | | ???????""""" "" ## ### ##??????????????? | | ?????#""" " """### ###?????????????? | | ?????##" "" " #### ###?????????????? | | ?????########### ##?????????????? | | ?????########## ###?????????????? | | ?????????????## ## ####?????????????? | | ?????????????## ### ####??????????????? | | ?????????????#### ########???????????????? | | ?????????????#### #######???????????????? | | ??????????????## ###########?????????? | | ??????????????## # ######?????????? | | ??????????????## # ?????????? | | ??????????????## ??????? | | ??????????????## ###### ## ??????? | | ??????????????### ############???????????? | | ??????????????### ###???????????????????? | | ??????????????## ;##????????????????????? | | ??????????????##*R*######????????????????? | | ??????????????### ######????????????????? | | ??????????????###@# ""#"????????????????? | | ??????????????###"""""""""???????????????? | | ??????????????## "##" ## ??????????????? | | ??????????????###### # ???????????????? | | ??????????????###### ##????????????????? | | ??????????????????# ###????????????????? | | ??????????????????? ###????????????????? | | ??????????????????? "?????????????????? | | ??????????????????? ?????????????????? | | ??????????????????? ### ?????????????????? | | ???????????????????" ###?????????????????? | | ?????????????????????????????????????????? | | ?????????????????????????????????????????? | | ?????????????????????????????????????????? | | ?????????????????????????????????????????? | | ?????????????????????????????????????????? | | ?????????????????????????????????????????? | | ?????????????????????????????????????????? | | ?????????????????????????????????????????? | | ?????????????????????????????????????????? | | ?????????????????????????????????????????? | | ?????????????????????????????????????????? | | ?????????????????????????????????????????? | | ?????????????????????????????????????????? | | ?????????????????????????????????????????? | +----------------------------------------------------+ Best States ------------- Heat Dissipation 25 Energy Generation 10 Energy Capacity 125 Matter Stores 300 Matter Capacity 300 Sight Range 16 Terrain Scan Range 16 Terrain Scan Density 10 Armor Coverage 150 Evasion (%) 50 Recoil Reduction 2 Item Schematics ----------------- None Robot Schematics ------------------ None Fabricated ------------ Nothing Alien Tech Used ----------------- None Achievements -------------- None Challenges ------------ None Game ------ Seed SigixProjectionRifle Manual? 0 Play Time 00:18:32 Cumulative 27.1 hours Start 2024.04.29 @ 15:03:33 End 2024.04.29 @ 15:20:10 Sessions 1 Manual Loads 0 Difficulty Rogue Special Mode None Game No. 26 Rogue 21 Adventurer 5 Explorer 0 Win Type - Total 0 Types 0/0/0/0/0/0/0/0/0 Lore% 24 Gallery% 27 Achievement% 22 Wizard Run 0 Options --------- Layout 2 ASCII 0 Keyboard 0 Movement Mouse Keybinds 0 Fullscreen 2 Font 24/Smallcaps Map View 50x44 Zoom Use 0% Tactical HUD 1 Map Filters NONE Filters NONE Steam 1 RUN: debecc17-96fb-43d9-b7de-64ed63fa31a6